bitfinex/quotes_ETHUSD_20251019
["timestamp","ask_amount","ask_price","bid_price","bid_amount"]
[1760866846631,0.2247,3883.9,3882.9,4.89083931]
[1760866846632,0.4678,3883.6,3882.9,4.89083931]
[1760866846845,0.2247,3883.9,3882.9,4.89083931]
[1760866847021,0.4678,3883.3,3882.6,1.728]
[1760866847222,1.0678,3883.4,3882.6,1.728]
[1760866847524,1.0678,3883.4,3882.0,2.662]
[1760866847525,0.2247,3882.7,3882.1,0.6336]
[1760866847946,0.2247,3882.7,3881.5,4.89083931]
[1760866848143,0.4678,3882.6,3881.7,2.661]
[1760866848308,0.4678,3882.5,3881.6,1.728]
[1760866848510,0.4678,3882.5,3881.4,1.728]
[1760866848741,0.4678,3882.5,3881.6,2.57619509]
[1760866848942,0.4678,3882.5,3881.3,4.89083931]
[1760866848943,0.4678,3882.5,3881.5,1.728]
[1760866849147,0.4678,3882.5,3881.6,2.57625419]
[1760866849335,0.4678,3882.5,3881.7,2.57618477]
[1760866849540,0.2247,3882.7,3882.2,0.6336]
[1760866849711,0.6,3883.4,3882.3,0.6336]
[1760866849913,0.6,3883.4,3882.6,4.89083931]
[1760866850439,0.2247,3882.7,3882.4,2.57566061]
[1760866850745,0.602,3883.4,3882.3,0.6336]
[1760866850945,0.602,3883.4,3882.7,0.6336]
[1760866851460,0.602,3883.4,3882.7,3.20910662]
[1760866851614,0.602,3883.4,3882.7,0.6336]
[1760866851815,0.602,3883.4,3883.0,4.89083931]
[1760866852056,0.602,3883.4,3883.3,2.5751294]
[1760866852363,0.602,3883.4,3883.3,3.2087294]
[1760866852654,0.602,3883.4,3883.3,0.6336]
[1760866852856,0.602,3883.4,3883.3,3.2087294]
[1760866853356,0.602,3883.4,3883.3,0.128]
[1760866853563,1.0698,3883.4,3883.3,0.128]
[1760866853716,0.602,3883.4,3883.3,0.128]
[1760866854072,0.602,3883.4,3883.3,0.6336]
[1760866854215,0.602,3883.4,3883.3,3.2087294]
[1760866854417,0.602,3883.4,3883.3,5.3832294]
[1760866854921,1e-08,3883.4,3883.3,5.3832294]
[1760866855122,1e-08,3883.4,3883.3,9.1871614]
[1760866855322,0.4678,3886.5,3884.9,0.6336]
[1760866855624,0.4678,3886.4,3885.1,0.6336]
[1760866855815,0.4678,3886.3,3885.1,2.57393632]
[1760866856017,0.2247,3885.2,3884.9,2.57404538]
[1760866856236,0.2247,3885.2,3884.6,0.6336]
[1760866856237,0.2247,3885.6,3885.1,2.57387272]
[1760866856444,0.2247,3885.9,3884.6,1.0801]
[1760866856660,0.55127952,3885.9,3885.0,0.6336]
[1760866856831,0.2247,3885.9,3885.0,0.6336]
[1760866857448,0.4678,3885.8,3885.0,3.20759892]
[1760866857614,0.40358583,3887.8,3885.7,4.89083931]
[1760866857836,0.6925,3886.6,3885.7,4.89083931]
[1760866858038,0.6925,3886.6,3885.7,7.46433052]
[1760866858233,0.6925,3886.6,3885.8,0.6336]
[1760866858850,0.6925,3886.5,3885.8,2.664]
[1760866859168,3.3674212,3886.4,3885.4,0.6336]
[1760866859488,0.32654557,3886.4,3885.4,0.6336]
[1760866859647,0.2247,3886.5,3885.7,4.89083931]
[1760866860045,0.6925,3886.5,3885.8,2.57347264]
[1760866860238,0.6925,3886.5,3885.7,4.89083931]
[1760866860452,0.2247,3887.0,3885.7,4.89083931]
[1760866860453,0.4678,3886.9,3886.1,2.57322515]
[1760866860767,0.2247,3886.8,3886.1,2.57327351]
[1760866860956,0.2247,3886.8,3886.0,2.57328371]
[1760866861161,0.2247,3886.8,3886.2,2.71598378]
[1760866861360,0.4678,3887.4,3886.4,2.57303977]
[1760866861584,2.44233427,3887.4,3886.2,2.8058]
[1760866861761,0.71433427,3887.4,3886.2,2.8058]
[1760866862068,0.71433427,3887.4,3886.2,5.37900244]
[1760866862254,0.71433427,3887.4,3886.5,2.572973]
[1760866862572,0.2247,3887.5,3886.6,2.663]
[1760866862774,0.4678,3887.3,3886.6,2.663]
[1760866862982,0.2247,3886.7,3885.3,5.33733931]
[1760866863284,0.4678,3886.6,3885.4,5.87033338]
[1760866863487,0.4678,3886.6,3885.5,2.57367134]
[1760866863686,0.2247,3885.6,3884.2,0.4465]
[1760866863840,0.2247,3886.7,3882.2,0.05]
[1760866863841,0.6925,3886.7,3885.5,0.1428]
[1760866864037,0.6925,3886.7,3885.6,2.57359249]
[1760866864252,0.6925,3886.7,3885.5,0.1428]
[1760866864253,0.24205,3886.6,3885.5,0.1428]
[1760866864450,0.24205,3886.6,3885.4,3.17072955]
[1760866864451,0.4678,3886.5,3885.4,0.597]
[1760866864651,2.57324418,3886.2,3885.4,0.597]
[1760866864871,2.57324418,3886.2,3884.7,0.4518]
[1760866864872,0.2276,3885.5,3884.6,7.46509431]
[1760866865075,0.2276,3885.5,3885.4,0.128]
[1760866865273,0.99633546,3885.5,3885.4,0.128]
[1760866865486,0.6718,3885.5,3885.4,0.128]
[1760866866966,5.11553931,3886.7,3885.4,0.4518]
[1760866866967,0.2247,3886.7,3885.4,0.4518]
[1760866867571,2.79758759,3886.7,3885.4,0.4518]
[1760866867767,2.57302843,3886.5,3885.4,0.4518]
[1760866867970,0.6689,3886.7,3885.4,0.4518]
[1760866868170,0.6689,3886.7,3885.5,2.57367134]
[1760866868370,0.4442,3886.6,3885.3,0.1428]
[1760866868567,0.4442,3886.6,3884.8,6.61883931]
[1760866868786,0.2276,3885.4,3884.7,10.14402643]
[1760866868988,0.2276,3885.7,3884.7,7.56983931]
[1760866869193,0.40355768,3887.6,3885.1,7.46477273]
[1760866869194,0.4442,3886.3,3885.1,7.46477273]
[1760866869489,0.4442,3886.3,3884.8,4.89083931]
[1760866869490,0.002,3885.5,3884.8,4.89083931]
[1760866870687,0.002,3885.5,3884.9,2.5740545]
[1760866870994,0.002,3885.5,3885.1,2.5739223]
[1760866871198,0.002,3885.5,3885.1,2.57387861]
[1760866871400,0.002,3885.5,3885.2,0.1428]
[1760866871772,0.002,3885.5,3885.2,2.71661754]
[1760866872101,0.002,3885.5,3884.7,7.56983931]
[1760866872305,0.002,3885.5,3884.7,5.25318555]
[1760866872596,0.002,3885.5,3884.7,2.679]
[1760866872990,0.002,3885.5,3884.8,2.57413423]
[1760866873189,0.002,3885.5,3884.7,2.679]
[1760866873589,0.002,3885.5,3884.9,2.57405446]
[1760866873786,0.002,3885.5,3884.7,2.679]
[1760866874042,0.4688,3885.4,3884.7,2.679]
[1760866874227,0.4688,3885.3,3884.2,2.678]
[1760866874391,2.57391761,3885.2,3884.2,2.678]
[1760866874587,0.56164555,3885.1,3884.3,2.57441638]
[1760866874787,2.57573699,3885.5,3884.2,2.678]
[1760866875005,2.57398931,3885.1,3884.2,2.678]
[1760866875493,0.002,3885.5,3884.4,4.89083931]
[1760866875793,0.002,3885.5,3884.8,4.89083931]
[1760866875989,0.002,3885.5,3884.5,2.57433389]
[1760866876187,0.002,3885.5,3884.4,7.46522015]
[1760866876418,2.57373758,3885.4,3884.5,2.57430313]
[1760866876599,2.57373758,3885.4,3884.6,2.57426575]
[1760866876803,2.57373758,3885.4,3884.5,2.57432508]
[1760866877008,2.57373758,3885.4,3884.4,4.89083931]
[1760866877009,0.002,3885.5,3885.3,0.128]
[1760866877408,2.57569782,3885.5,3885.3,0.128]
[1760866877721,3.04448196,3885.5,3885.3,0.128]
[1760866878301,1.728,3886.0,3885.3,0.128]
[1760866878626,0.6336,3887.3,3883.4,1.16]
[1760866878627,0.2321,3888.6,3887.3,1.728]
[1760866878828,1.3566841,3888.8,3886.8,2.57278447]
[1760866878829,0.8878841,3888.8,3888.5,4.89083931]
[1760866879030,0.8878841,3888.8,3888.7,3.044481]
[1760866879330,0.8878841,3888.8,3888.7,12.15088047]
[1760866879515,0.33687831,3888.8,3888.7,12.27985847]
[1760866879826,0.4688,3891.8,3889.8,6.58332921]
[1760866880029,0.4688,3891.8,3889.8,12.55516852]
[1760866880228,0.2321,3892.1,3889.8,12.55516852]
[1760866880229,0.2321,3892.1,3889.9,3.72855621]
[1760866880404,0.27688913,3892.5,3890.3,33.54540136]
[1760866880608,0.2321,3891.7,3890.3,18.79329857]
[1760866880805,0.2321,3890.9,3890.3,4.80855621]
[1760866881007,0.4688,3891.5,3890.3,4.83426116]
[1760866881206,0.2321,3891.7,3890.3,2.63415621]
[1760866881447,0.2321,3891.7,3890.5,0.6336]
[1760866881601,0.2321,3890.6,3890.5,2.63415621]
[1760866881798,0.2321,3890.6,3889.3,0.01270906]
[1760866881799,0.2321,3891.7,3889.6,4.89083931]
[1760866881997,0.12707381,3893.5,3889.0,0.2226]
[1760866881998,0.1354,3891.6,3889.8,2.000557]
[1760866882199,0.1354,3893.1,3890.3,4.89083931]
[1760866882456,0.1354,3893.5,3891.6,2.000557]
[1760866882613,0.1161,3894.9,3891.5,0.2355]
[1760866882614,0.1161,3894.9,3893.4,0.2355]
[1760866882817,0.1161,3894.9,3893.8,2.000557]
[1760866883029,0.1161,3894.9,3893.5,2.000557]
[1760866883030,0.1354,3893.9,3893.5,2.000557]
[1760866883235,0.1161,3894.9,3893.8,4.89083931]
[1760866883431,0.1161,3894.9,3893.7,2.000557]
[1760866883703,0.1354,3895.3,3894.3,2.000557]
[1760866883922,0.1354,3895.3,3894.5,2.000557]
[1760866884150,0.1161,3896.0,3894.8,4.89083931]
[1760866884326,0.1161,3896.0,3894.9,2.000557]
[1760866885064,0.1161,3896.0,3894.6,4.89083931]
[1760866885218,0.04474862,3896.3,3895.3,2.000557]
[1760866885541,0.1161,3895.4,3894.5,2.000557]
[1760866885836,0.1161,3895.4,3893.7,2.86]
[1760866885837,0.1161,3894.6,3893.7,2.000557]
[1760866886234,0.1161,3894.8,3893.7,2.000557]
[1760866886737,0.1161,3894.8,3893.2,2.000557]
[1760866886939,0.1354,3893.8,3892.1,2.000557]
[1760866887111,0.1354,3892.2,3891.8,2.000557]
[1760866887435,0.1354,3892.2,3891.1,4.89083931]
[1760866887738,0.1354,3893.8,3891.8,4.89083931]
[1760866887947,0.1354,3893.2,3891.9,2.000557]
[1760866888143,0.1354,3893.2,3891.8,2.000557]
[1760866888457,0.1354,3893.2,3891.9,2.000557]
[1760866888752,1.728,3894.9,3892.8,2.56884504]
[1760866888959,0.04475691,3894.9,3893.2,2.000557]
[1760866889255,0.04475691,3894.9,3893.5,2.000557]
[1760866889409,0.04475691,3894.9,3893.2,2.56855969]
[1760866889612,0.04475691,3894.9,3893.4,2.000557]
[1760866890116,0.04475691,3894.9,3892.8,2.000557]
[1760866890419,1.728,3894.5,3892.7,2.000557]
[1760866890612,1.728,3894.2,3892.5,2.000557]
[1760866890954,2.56794087,3894.2,3892.5,2.000557]
[1760866891162,1.728,3894.3,3892.5,2.000557]
[1760866891327,4.29587351,3894.3,3892.5,2.000557]
[1760866891509,4.93559759,3894.4,3892.5,2.000557]
[1760866891718,1.728,3894.3,3892.2,2.000557]
[1760866891931,1.728,3894.3,3892.3,6.89139631]
[1760866892118,0.1161,3894.8,3893.2,2.000557]
[1760866892335,0.1161,3894.8,3892.0,0.2355]
[1760866892336,4.89083931,3894.3,3892.1,2.000557]
[1760866892541,0.1354,3893.3,3892.1,2.000557]
[1760866894109,0.1354,3893.3,3891.9,2.000557]
[1760866894316,1.728,3893.1,3891.9,2.000557]
[1760866894516,2.70393263,3893.3,3891.5,2.000557]
[1760866894947,1.728,3893.1,3891.5,2.000557]
[1760866895141,1.728,3893.1,3890.9,0.2355]
[1760866895142,1.728,3892.5,3891.0,2.000557]
[1760866895353,1.728,3893.1,3891.0,2.000557]
[1760866895354,0.1354,3892.4,3891.0,2.000557]
[1760866895525,2.56917503,3892.3,3890.4,2.000557]
[1760866895858,1.728,3892.0,3890.4,2.000557]
[1760866896160,0.1354,3892.4,3890.4,2.000557]
[1760866896542,0.1354,3892.4,3890.6,2.000557]
[1760866896766,0.0447769,3892.1,3891.1,2.000557]
[1760866897055,0.0447769,3892.1,3890.3,0.001]
[1760866897056,0.1354,3892.4,3890.8,2.000557]
[1760866897263,0.099,3892.3,3890.7,0.4543]
[1760866897459,0.099,3892.3,3890.8,2.000557]
[1760866897771,0.099,3892.3,3890.3,0.001]
[1760866897772,0.1354,3892.4,3890.3,0.001]
[1760866897773,1.728,3891.7,3890.3,0.001]
[1760866898056,0.099,3892.2,3890.4,2.000557]
[1760866898057,1.728,3892.0,3890.4,2.000557]
[1760866898263,1.728,3891.7,3890.4,2.000557]
[1760866898443,0.04477973,3892.1,3891.3,2.000557]
[1760866898649,0.04477973,3892.1,3890.7,2.000557]
[1760866898828,0.04477973,3892.1,3890.8,2.000557]
[1760866899240,1.77277973,3892.1,3890.6,2.000557]
[1760866899516,1.728,3892.7,3890.6,2.000557]
[1760866899517,0.1354,3892.9,3892.0,0.2138]
[1760866899717,0.1354,3892.9,3891.6,0.2138]
[1760866899955,0.1354,3892.9,3891.7,2.000557]
[1760866900462,1.8634,3892.9,3891.7,2.000557]
[1760866900756,1.8634,3892.9,3891.6,0.2138]
[1760866900757,2.70423156,3892.9,3891.6,0.2138]
[1760866901063,0.1354,3892.9,3891.6,0.6681]
[1760866901242,0.1354,3893.3,3892.1,2.000557]
[1760866901414,0.1354,3893.3,3891.8,4.89083931]
[1760866901415,0.1354,3893.3,3892.2,0.2138]
[1760866901622,0.2332,3894.6,3893.2,0.2138]
[1760866901926,2.56706399,3895.6,3892.9,2.000557]
[1760866901927,0.2332,3893.9,3892.9,2.000557]
[1760866902114,0.2332,3893.9,3891.6,0.2138]
[1760866902115,1.728,3892.9,3889.5,3.1168592]
[1760866902317,0.1346,3892.8,3891.1,7.34569631]
[1760866902539,1.728,3893.3,3891.6,2.000557]
[1760866902845,1.728,3893.1,3891.8,2.000557]
[1760866903049,0.0997,3893.3,3891.8,2.000557]
[1760866903366,2.56838794,3893.5,3891.8,2.000557]
[1760866903565,5.4098909,3894.0,3892.0,2.000557]
[1760866903566,0.0997,3893.9,3892.0,2.000557]
[1760866903738,2.56839672,3893.5,3892.2,2.000557]
[1760866903917,1.8277,3893.9,3892.2,2.000557]
[1760866904123,2.56853878,3893.3,3892.2,2.000557]
[1760866904332,1.728,3893.3,3892.2,2.000557]
[1760866904549,0.1161,3894.0,3892.6,2.56897174]
[1760866904550,2.684213,3894.0,3892.6,2.56897174]
[1760866904725,0.1161,3894.0,3892.7,2.000557]
[1760866904920,0.1161,3894.0,3892.8,0.4543]
[1760866905126,0.1161,3894.0,3893.0,2.56869581]
[1760866905328,0.1161,3894.8,3893.2,2.000557]
[1760866905541,0.1161,3894.8,3893.3,0.4543]
[1760866905853,0.1172,3894.9,3893.5,2.5683832]
[1760866906060,0.1172,3894.9,3893.4,4.56900585]
[1760866906265,0.1172,3894.9,3893.4,2.000557]
[1760866906555,2.56752593,3894.8,3893.4,2.000557]
[1760866906781,1.728,3894.6,3893.4,2.000557]
[1760866906932,2.56752773,3894.8,3893.4,2.000557]
[1760866907133,0.1172,3894.9,3893.1,0.2138]
[1760866907134,0.1172,3894.9,3893.7,2.56824874]
[1760866907338,2.56685066,3895.9,3893.7,2.56824874]
[1760866907339,0.2151,3897.0,3894.9,4.56800932]
[1760866907644,0.2151,3897.0,3895.0,0.02564554]
[1760866907645,0.04474606,3896.3,3895.0,0.02564554]
[1760866907832,0.2151,3897.0,3895.2,9.45863651]
[1760866907833,0.1159,3897.0,3895.2,9.45863651]
[1760866908033,0.04474024,3897.4,3895.7,2.634157]
[1760866908349,0.099,3897.8,3895.9,2.69480099]
[1760866908654,0.099,3897.8,3895.9,2.762157]
[1760866908827,1.728,3897.7,3895.9,5.78325799]
[1760866909030,0.1162,3896.5,3895.9,2.000557]
[1760866909226,0.6,3897.1,3895.9,0.4543]
[1760866909427,0.6,3897.1,3895.9,2.454857]
[1760866909626,0.1159,3896.9,3895.9,2.454857]
[1760866909953,1.728,3896.7,3895.9,2.454857]
[1760866910158,0.1159,3896.9,3895.4,2.000557]
[1760866910444,0.1336,3895.9,3894.8,0.6681]
[1760866910663,0.1336,3895.9,3894.9,2.000557]
[1760866910860,1.728,3896.1,3894.9,2.000557]
[1760866911066,1.728,3896.4,3895.1,2.000557]
[1760866911270,0.04474036,3896.7,3895.1,6.89139631]
[1760866911453,0.6,3897.1,3896.1,2.56666923]
[1760866911654,0.125,3896.2,3896.1,11.02960854]
[1760866911852,0.6,3897.1,3897.0,2.56607646]
[1760866912055,0.6,3897.1,3897.0,6.89139631]
[1760866912385,7.45540992,3899.3,3897.0,6.89139631]
[1760866912386,0.235,3904.8,3902.5,2.56245996]
[1760866912589,0.235,3904.8,3902.5,3.06735852]
[1760866912590,0.235,3903.3,3902.5,3.06735852]
[1760866912882,0.82755987,3902.6,3902.5,2.000557]
[1760866913178,0.82755987,3902.6,3902.3,4.89083931]
[1760866913179,0.82755987,3902.6,3902.4,2.000557]
[1760866913503,0.82755987,3902.6,3902.5,2.000557]
[1760866913796,0.82755987,3902.6,3902.4,2.000557]
[1760866913946,0.82755987,3902.6,3902.0,2.02618488]
[1760866914147,0.00331048,3902.3,3902.0,2.000557]
[1760866914390,0.00331048,3902.3,3901.9,0.1572]
[1760866914391,0.00331048,3902.3,3902.2,6.89139631]
[1760866914875,0.00331048,3902.3,3902.2,9.30509331]
[1760866915077,0.00331048,3902.3,3902.2,7.20589631]
[1760866915645,0.00331048,3902.3,3902.2,2.000557]
[1760866915849,0.00331048,3902.3,3902.1,2.000557]
[1760866916244,0.00331048,3902.3,3899.5,2.61438665]
[1760866916245,0.00331048,3902.3,3901.5,2.000557]
[1760866916578,0.00331048,3902.3,3900.1,0.00574784]
[1760866916579,0.00331048,3902.3,3900.9,4.89083931]
[1760866916790,0.00331048,3902.3,3902.2,2.000557]
[1760866917497,0.00331048,3902.3,3902.2,2.315057]
[1760866917644,0.00331048,3902.3,3902.2,7.20589631]
[1760866918283,0.00331048,3902.3,3902.2,9.76855327]
[1760866919073,0.00331048,3902.3,3902.2,7.01939631]
[1760866919279,0.00331048,3902.3,3902.2,9.58205327]
[1760866919463,0.00331048,3902.3,3902.2,2.000557]
[1760866919671,0.00331048,3902.3,3901.7,2.000557]
[1760866920205,0.00331048,3902.3,3902.2,4.56321396]
[1760866920517,0.00331048,3902.3,3902.2,2.000557]
[1760866920810,0.00331048,3902.3,3902.2,9.76855327]
[1760866921397,1e-08,3902.6,3902.5,16.53794996]
[1760866921596,0.4484,3905.3,3904.5,2.56113653]
[1760866921827,0.4484,3905.3,3902.5,3.072]
[1760866921828,2.56142112,3904.1,3902.2,2.5626532]
[1760866921963,0.4484,3904.0,3902.1,4.89083931]
[1760866922299,0.6834,3903.9,3902.3,0.642808]
[1760866922463,0.6834,3903.9,3901.3,0.4717]
[1760866922464,1.728,3903.6,3901.9,0.642808]
[1760866922662,1.728,3903.3,3901.9,0.642808]
[1760866922862,0.4484,3903.5,3900.7,4.89083931]
[1760866922863,0.235,3902.0,3900.7,4.89083931]
[1760866923065,0.235,3902.0,3900.8,0.642808]
[1760866923295,2.56213408,3903.0,3901.7,0.642808]
[1760866923470,0.235,3903.1,3901.6,0.642808]
[1760866923677,2.56142515,3904.1,3902.3,4.89083931]
[1760866923678,0.4484,3903.7,3902.3,4.89083931]
[1760866923879,4.89083931,3904.3,3902.4,0.642808]
[1760866924108,0.235,3904.6,3901.7,0.642808]
[1760866924109,0.235,3902.5,3901.7,0.642808]
[1760866924399,0.04465154,3904.1,3904.0,2.5614754]
[1760866924599,0.04465154,3904.1,3904.0,3.8378834]
[1760866924802,0.235,3905.7,3904.0,5.53364731]
[1760866925010,0.001,3904.6,3904.5,3.20395539]
[1760866925215,0.001,3904.6,3904.5,8.4092947]
[1760866925368,0.001,3904.6,3904.5,9.0428947]
[1760866926002,0.001,3904.6,3904.5,11.7004907]
[1760866926202,0.001,3904.6,3904.5,9.0428947]
[1760866926704,2.55976018,3906.7,3905.3,2.56062248]
[1760866926905,0.137,3907.0,3905.3,2.56058026]
[1760866926906,2.55957408,3906.9,3905.3,2.56058026]
[1760866927104,2.55957408,3906.9,3905.5,2.56048948]
[1760866927311,0.137,3907.0,3905.2,0.642808]
[1760866927312,0.4444,3906.8,3905.2,0.642808]
[1760866927512,2.56010962,3906.1,3904.8,0.642808]
[1760866927806,0.4444,3906.7,3904.8,0.642808]
[1760866927807,0.4444,3906.3,3904.8,0.642808]
[1760866927968,0.4444,3906.3,3903.8,5.61454847]
[1760866927969,0.4444,3906.3,3904.5,4.89083931]
[1760866928171,0.2295,3906.7,3904.6,7.45189854]
[1760866928473,0.48902107,3906.6,3905.1,3.20356188]
[1760866928672,0.48902107,3906.6,3904.4,2.56115636]
[1760866928673,0.2295,3907.1,3905.8,4.89083931]
[1760866928890,0.2295,3907.1,3905.4,4.89083931]
[1760866929117,0.2295,3907.1,3905.5,0.642808]
[1760866929353,0.4444,3907.0,3905.4,0.6336]
[1760866929479,0.4444,3907.0,3905.4,0.642808]
[1760866929679,0.4444,3907.0,3906.9,0.1272]
[1760866929886,0.4444,3907.0,3905.4,4.89083931]
[1760866930080,0.2295,3907.1,3905.7,2.56031617]
[1760866930324,0.2295,3907.1,3905.0,0.6336]
[1760866930325,1.728,3906.8,3905.1,0.1572]
[1760866930505,0.2295,3907.1,3905.6,4.89083931]
[1760866930671,0.2295,3907.1,3905.7,2.56035455]
[1760866930877,0.2295,3907.1,3905.6,5.32513931]
[1760866931076,2.55945548,3907.1,3905.6,7.8855472]
[1760866931275,0.4506,3907.3,3905.4,0.6336]
[1760866931499,0.003476,3907.9,3907.2,5.04803931]
[1760866931673,0.4506,3911.3,3907.2,5.04803931]
[1760866931674,0.2154,3912.3,3908.9,2.55826447]
[1760866931906,0.2154,3912.3,3909.1,0.6336]
[1760866931907,0.2154,3911.8,3909.1,0.6336]
[1760866932070,0.2154,3911.8,3910.5,0.6336]
[1760866932274,0.2154,3911.8,3909.2,3.6499]
[1760866932275,0.2154,3911.8,3910.0,0.4343]
[1760866932585,2.950009,3911.7,3908.8,0.1337]
[1760866932787,2.950009,3911.7,3909.5,4.89083931]
[1760866932788,0.4506,3911.7,3909.5,4.89083931]
[1760866932997,0.4506,3911.6,3909.9,4.89083931]
[1760866933188,2.55466546,3914.5,3908.8,0.1337]
[1760866933189,0.4506,3912.9,3911.1,4.89083931]
[1760866933374,0.2154,3912.7,3911.5,4.89083931]
[1760866933590,0.4506,3913.3,3911.9,4.89083931]
[1760866933801,3.62189012,3914.0,3912.0,4.89083931]
[1760866934112,3.62189012,3914.0,3911.3,0.4343]
[1760866934113,2.55573777,3912.8,3911.7,4.89083931]
[1760866934326,0.2154,3911.8,3909.5,0.1424]
[1760866934490,0.2154,3911.8,3909.5,5.03323931]
[1760866934491,0.4506,3911.7,3909.5,5.03323931]
[1760866934677,2.896544,3911.5,3909.5,5.03323931]
[1760866934985,0.2154,3912.6,3910.7,4.89083931]
[1760866935176,0.4506,3912.5,3910.4,4.89083931]
[1760866935381,0.4506,3912.4,3910.3,0.1276]
[1760866935706,2.55709759,3910.7,3909.8,4.89083931]
[1760866935911,0.2154,3911.2,3909.8,4.89083931]
[1760866936111,0.2154,3911.2,3908.8,2.69197228]
[1760866936112,0.4506,3911.1,3908.9,4.89083931]
[1760866936408,6.61883931,3910.7,3908.4,0.1337]
[1760866936591,6.27368616,3909.9,3907.4,0.1424]
[1760866936795,2.55800271,3909.3,3907.6,4.89083931]
[1760866937003,0.4506,3909.2,3907.4,0.1424]
[1760866937234,0.4506,3909.2,3907.0,0.1276]
[1760866937235,2.5588814,3908.0,3907.0,0.1276]
[1760866937395,0.2154,3908.2,3906.6,4.89083931]
[1760866937580,1.728,3908.3,3906.7,0.4343]
[1760866937785,0.4506,3909.7,3908.1,4.89083931]
[1760866938038,4.89083931,3909.4,3906.7,0.1276]
[1760866938200,0.2154,3908.2,3906.3,0.1276]
[1760866938532,0.666,3908.2,3906.3,4.89083931]
[1760866938687,2.5590554,3907.7,3906.3,4.89083931]
[1760866938883,2.55905748,3907.7,3906.3,4.89083931]
[1760866939095,2.55932217,3907.3,3906.0,0.1424]
[1760866939295,1.728,3907.4,3905.5,0.1424]
[1760866939533,0.2154,3907.9,3905.5,0.1424]
[1760866939696,0.2154,3907.9,3906.0,4.89083931]
[1760866939903,0.4506,3907.8,3906.0,4.89083931]
[1760866940237,0.2154,3907.9,3905.8,4.89083931]
[1760866940238,0.4506,3907.7,3905.8,4.89083931]
[1760866940401,2.55953456,3907.0,3905.8,4.89083931]
[1760866940587,2.55958869,3906.9,3905.8,4.89083931]
[1760866940938,0.4506,3907.6,3905.9,4.89083931]
[1760866941136,0.2154,3907.9,3906.7,4.89083931]
[1760866941337,2.55899213,3907.8,3906.7,4.89083931]
[1760866941634,2.55899213,3907.8,3906.5,0.1276]
[1760866941838,0.2154,3907.9,3906.4,4.89083931]
[1760866941984,2.55937617,3907.3,3905.5,0.1424]
[1760866942188,0.4506,3907.7,3905.7,2.5603588]
[1760866942385,0.4506,3907.7,3905.8,4.89083931]
[1760866942604,0.2154,3907.9,3906.5,4.89083931]
[1760866943148,2.55926126,3907.4,3906.4,0.1276]
[1760866943316,0.2154,3907.9,3906.4,0.1276]
[1760866943630,2.55923881,3907.5,3906.4,0.1276]
[1760866943837,0.2154,3907.9,3905.9,0.4343]
[1760866943838,2.5595603,3907.0,3905.9,0.4343]
[1760866943986,2.55960133,3906.9,3905.9,0.4343]
[1760866944187,1.728,3907.5,3905.2,4.89083931]
[1760866944388,2.56009575,3906.2,3904.8,4.89083931]
[1760866944634,0.4506,3906.8,3904.8,4.89083931]
[1760866944929,0.4506,3906.8,3905.6,4.89083931]
[1760866945097,2.56051259,3907.0,3905.6,4.89083931]
[1760866945297,0.001,3907.0,3905.2,4.89083931]
[1760866945516,2.559918,3906.4,3905.2,4.89083931]
[1760866945827,0.001,3907.0,3905.3,0.23125871]
[1760866945984,0.001,3907.0,3905.4,0.23125053]
[1760866946186,2.56015374,3906.1,3905.2,4.89083931]
[1760866946390,0.4506,3906.6,3905.3,0.23153004]
[1760866946690,2.55983617,3906.5,3905.3,0.23153004]
[1760866946891,2.55977084,3906.6,3905.6,4.89083931]
[1760866947091,2.55985921,3906.5,3905.6,4.89083931]
[1760866947287,2.5597861,3906.6,3905.3,4.89083931]
[1760866947523,0.4506,3906.7,3905.4,0.23185508]
[1760866947725,0.4506,3906.7,3905.5,0.23185508]
[1760866947909,0.4506,3906.7,3905.6,0.23185508]
[1760866947910,2.55988857,3906.5,3905.6,0.23185508]
[1760866948222,1.728,3906.9,3905.3,4.89083931]
[1760866948427,0.001,3907.0,3905.4,0.23205859]
[1760866948615,0.001,3907.0,3905.7,4.89083931]
[1760866948796,2.55986746,3906.5,3905.7,4.89083931]
[1760866948997,2.55968486,3906.8,3905.7,4.89083931]
[1760866949198,2.55958295,3906.9,3905.7,4.89083931]
[1760866949502,0.001,3907.0,3905.8,0.23216642]
[1760866949898,2.5598262,3906.6,3905.8,0.23216642]
[1760866950095,0.4506,3906.5,3904.3,0.4343]
[1760866950290,2.1786,3906.5,3904.5,4.89283931]
[1760866950497,0.04461538,3906.8,3905.3,4.89083931]
[1760866950789,2.55989813,3906.5,3905.4,0.1384]
[1760866951006,2.55974587,3906.7,3906.4,0.1272]
[1760866951227,2.55974587,3906.7,3904.5,0.002]
[1760866951228,0.4506,3906.6,3904.5,0.002]
[1760866951435,1.728,3906.4,3904.5,2.56313247]
[1760866951723,2.56035348,3905.8,3904.5,2.56313351]
[1760866951946,2.56034828,3905.8,3904.5,0.002]
[1760866952293,2.56017063,3906.0,3904.5,0.002]
[1760866952494,2.56043328,3905.6,3904.5,0.002]
[1760866952716,0.2154,3905.9,3904.5,0.002]
[1760866952931,2.5610818,3904.6,3904.5,0.002]
[1760866953109,2.7764818,3904.6,3904.5,0.002]
[1760866953314,4.9550818,3904.6,3902.4,0.135]
[1760866953516,2.56200393,3903.2,3901.1,2.56336999]
[1760866953731,1.728,3903.9,3901.5,0.1384]
[1760866953897,0.666,3903.8,3901.3,4.89083931]
[1760866954096,2.56296546,3901.8,3900.5,4.89083931]
[1760866954326,1.728,3903.0,3900.5,4.89083931]
[1760866954327,0.2154,3901.9,3900.5,4.89083931]
[1760866954527,0.4506,3901.8,3900.0,0.135]
[1760866954932,2.56350852,3901.0,3899.6,4.89083931]
[1760866955134,2.56350852,3901.0,3897.8,5.28850094]
[1760866955135,0.2363,3900.9,3898.9,0.4636]